fUSD/lending_fUSD_20240612
["ID","MTS","AMOUNT","RATE_DAILY","PERIOD"]
[329275413,1718209851838,-150.0,0.00029707,2]
[329275415,1718209851856,-150.0,0.00029714,2]
[329275416,1718209851867,-150.0,0.00029726,2]
[329275418,1718209851878,-150.0,0.00029732,2]
[329275420,1718209851889,-150.0,0.00029732,2]
[329275422,1718209851899,-150.0,0.00029733,2]
[329275424,1718209851908,-150.0,0.00029736,2]
[329275426,1718209851919,-150.0,0.00029738,2]
[329275428,1718209851929,-819.0,0.0002975,2]
[329275430,1718209851940,-500.0,0.00029753,2]
[329275433,1718209851952,-150.0,0.00029759,2]
[329275434,1718209851963,-150.0,0.0002976,2]
[329275435,1718209851974,-150.0,0.0002976,2]
[329275436,1718209851987,-150.0,0.00029764,2]
[329275437,1718209852000,-150.0,0.00029765,2]
[329275438,1718209852011,-150.0,0.00029768,2]
[329275439,1718209852024,-150.0,0.0002977,2]
[329275440,1718209852034,-150.0,0.00029776,2]
[329275441,1718209852046,-150.0,0.00029778,2]
[329275442,1718209852059,-150.0,0.00029781,2]
[329275443,1718209852071,-150.0,0.00029781,2]
[329275444,1718209852083,-150.0,0.00029785,2]
[329275445,1718209852096,-150.0,0.00029791,2]
[329275447,1718209852131,-150.0,0.00029795,2]
[329275448,1718209852144,-150.0,0.00029795,2]
[329275450,1718209852155,-155.0,0.000298,2]
[329275452,1718209852165,-1000.0,0.000298,10]
[329275454,1718209852176,-150.0,0.00029802,2]
[329275455,1718209852186,-150.0,0.00029802,2]
[329275457,1718209852198,-150.0,0.00029805,2]
[329275458,1718209852209,-150.0,0.0002981,2]
[329275459,1718209852222,-150.0,0.0002981,2]
[329275460,1718209852233,-1253.22,0.00029811,2]
[329275461,1718209852245,-500.0,0.00029811,2]
[329275462,1718209852256,-500.0,0.00029819,2]
[329275463,1718209852268,-150.0,0.00029819,2]
[329275464,1718209852279,-818.84,0.0002982,2]
[329275465,1718209852291,-274.60815805,0.0002982,2]
[329275466,1718209852301,-500.0,0.0002982,2]
[329275467,1718209852314,-500.0,0.00029821,2]
[329275468,1718209852326,-500.0,0.00029821,2]
[329275469,1718209852338,-150.0,0.00029824,2]
[329275470,1718209852350,-150.0,0.00029827,2]
[329275471,1718209852367,-150.0,0.0002983,2]
[329275472,1718209852379,-150.0,0.0002986,2]
[329275473,1718209852391,-150.0,0.00029864,2]
[329275474,1718209852403,-150.0,0.00029868,2]
[329275475,1718209852415,-150.0,0.00029876,2]
[329275476,1718209852426,-150.0,0.00029885,2]
[329275477,1718209852438,-150.0,0.00029886,2]
[329275478,1718209852450,-150.0,0.00029889,2]
[329275479,1718209852461,-1996.3195,0.00029889,2]
[329275480,1718209852473,-1415.7546,0.00029889,2]
[329275481,1718209852484,-173.25656806,0.0002989,2]
[329275482,1718209852495,-500.0,0.0002989,2]
[329275483,1718209852506,-6324.93035558,0.0002989,2]
[329275484,1718209852518,-150.0,0.00029895,2]
[329275485,1718209852530,-150.0,0.00029895,2]
[329275486,1718209852541,-7055.29640303,0.000299,2]
[329275487,1718209852596,-266.2781261,0.000279,2]
[329275488,1718209852610,-224.98486477,0.00028,2]
[329275489,1718209852621,-380.68506356,0.00028554,2]
[329275490,1718209852631,-150.0,0.00029841,2]
[329275491,1718209852643,-150.0,0.00029863,2]
[329275492,1718209852653,-150.0,0.00029869,2]
[329275493,1718209852663,-150.0,0.00029883,2]
[329275494,1718209852676,-1205.62176995,0.000299,2]
[329275495,1718209852687,-314.84727691,0.000299,2]
[329275496,1718209852698,-1009.12,0.000299,2]
[329275497,1718209852710,-221.83513149,0.000299,2]
[329275498,1718209852721,-502.25097522,0.000299,2]
[329275499,1718209852732,-327.47778573,0.000299,2]
[329275500,1718209852742,-173.34889558,0.000299,2]
[329275501,1718209852753,-150.0,0.00029903,2]
[329275502,1718209852764,-150.0,0.00029911,2]
[329275503,1718209852776,-150.0,0.00029914,2]
[329275504,1718209852786,-150.0,0.00029916,2]
[329275505,1718209852797,-150.0,0.00029917,2]
[329275506,1718209852809,-150.0,0.00029917,2]
[329275507,1718209852821,-150.0,0.00029922,2]
[329275508,1718209852832,-150.0,0.00029924,2]
[329275509,1718209852844,-150.0,0.00029941,2]
[329275510,1718209852862,-150.0,0.00029943,2]
[329275511,1718209852873,-1253.22,0.00029948,2]
[329275512,1718209852887,-500.0,0.00029948,2]
[329275513,1718209852900,-150.0,0.00029955,2]
[329275514,1718209852912,-500.0,0.00029956,2]
[329275515,1718209852923,-150.0,0.00029956,2]
[329275516,1718209852934,-818.84,0.00029957,2]
[329275517,1718209853081,-500.0,0.00029957,2]
[329275518,1718209853095,-500.0,0.00029958,2]
[329275519,1718209853117,-500.0,0.00029958,2]
[329275520,1718209853129,-150.0,0.00029963,2]
[329275521,1718209853141,-150.0,0.00029967,2]
[329275522,1718209853153,-150.0,0.0002998,2]
[329275523,1718209853165,-150.0,0.00029985,2]
[329275524,1718209853176,-150.0,0.00029987,2]
[329275525,1718209853186,-1001.87378023,0.00029988,2]
[329275526,1718209853197,-3384.77160162,0.00029988,2]
[329275527,1718209853208,-157.93299216,0.00029988,2]
[329275528,1718209853219,-1827.92438736,0.00029988,2]
[329275529,1718209853229,-1230.68671206,0.00029988,2]
[329275530,1718209853240,-5581.63842209,0.00029988,2]
[329275531,1718209853251,-1578.02425963,0.00029988,2]
[329275532,1718209853262,-201.7302263,0.00029988,2]
[329275533,1718209853273,-1116.8762851,0.00029988,2]
[329275534,1718209853284,-156.23310905,0.00029988,2]
[329275535,1718209853295,-2693.2698769,0.00029988,2]
[329275536,1718209853307,-232.66696282,0.0002999,2]
[329275537,1718209853321,-972.08732692,0.0002999,2]
[329275538,1718209853331,-150.0,0.00029992,2]
[329275539,1718209853343,-150.0,0.00029995,2]
[329275540,1718209853355,-6689.57,0.00029999,2]
[329275541,1718209853367,-500.0,0.00029999,2]
[329275542,1718209853379,-382.07724904,0.00029999,2]
[329275543,1718209853391,-258.75,0.00029999,2]
[329275544,1718209853402,-151.0,0.0003,2]
[329275545,1718209853414,-236.0560753,0.0003,2]
[329275546,1718209853425,-459.08388457,0.0003,5]
[329275547,1718209853436,-165306.87278072,0.0003,13]
[329275548,1718209853450,-4074.31430213,0.0003,13]
[329275549,1718209853465,-427502.42319924,0.0003,13]
[329275550,1718209853493,-380.68506356,0.00028554,2]
[329275551,1718209853504,-475.08790245,0.0003,13]
[329276064,1718209927903,531.47230708,0.00017259,2]
[329276065,1718209929434,2259.46769292,0.00017259,2]
[329276066,1718210024858,660000.0,0.00014,2]
[329276067,1718210024936,129524.6222411,0.00014,2]
[329276070,1718210130020,1606.45,0.00024572,30]
[329276120,1718210676105,1472.57,0.00024329,30]
[329276138,1718211032799,-2149.02,0.00014698,2]
[329276143,1718211033252,-756.27288357,0.00014698,2]
[329276144,1718211033265,-2997.17059643,0.00014698,2]
[329276145,1718211033276,-187.0,0.00014772,2]
[329276146,1718211033287,-150.0,0.00014959,2]
[329276147,1718211033297,-2988.04559274,0.0001499,2]
[329276148,1718211033308,-408.92,0.0001499,3]
[329276149,1718211033319,-150.0,0.00014998,2]
[329276150,1718211033330,-246.51690211,0.00014999,2]
[329276151,1718211033341,-7960.19874885,0.00014999,2]
[329276152,1718211033352,-133837.23215761,0.00015,2]
[329276153,1718211033363,-17146.836,0.00015,2]
[329276154,1718211033373,-210.0,0.00016498,2]
[329276155,1718211033385,-1204.87,0.0001726,2]
[329276156,1718211033395,-499.99,0.0001726,2]
[329276157,1718211033406,-293.0,0.00018148,2]
[329276158,1718211033417,-350.62,0.00018838,2]
[329276159,1718211033427,-4126.118,0.00018877,2]
[329276160,1718211033440,-190.90850866,0.00019451,2]
[329276161,1718211033455,-411.0,0.00019962,2]
[329276162,1718211033467,-226.74152349,0.000201,2]
[329276163,1718211033492,-3693.427,0.0002055,2]
[329276164,1718211033503,-627.85,0.00020949,2]
[329276165,1718211033514,-1250.0,0.00021,2]
[329276166,1718211033527,-350.62,0.00021101,2]
[329276167,1718211033540,-2058.05239766,0.000212,2]
[329276168,1718211033552,-23900.0,0.00021545,2]
[329276169,1718211033563,-250.0,0.00021716,2]
[329276170,1718211033574,-250.0,0.00021727,2]
[329276171,1718211033588,-250.0,0.00021918,2]
[329276172,1718211033599,-203.72,0.00021918,2]
[329276173,1718211033610,-201.34,0.00021941,2]
[329276174,1718211033622,-150.357,0.00022109,2]
[329276175,1718211033632,-619.61,0.00022216,2]
[329276176,1718211033646,-1300.0,0.00023,2]
[329276177,1718211033658,-350.62,0.00023365,2]
[329276178,1718211033670,-155.0,0.000238,2]
[329276179,1718211033682,-200.0,0.000239,8]
[329276180,1718211033693,-2086.09821987,0.00024,3]
[329276181,1718211033705,-180.0,0.0002423,2]
[329276182,1718211033728,-158.97201675,0.00024256,2]
[329276183,1718211033745,-154.89060019,0.00024262,2]
[329276184,1718211033758,-166.66666668,0.00024265,2]
[329276185,1718211033770,-181.77894768,0.00024284,2]
[329276186,1718211033781,-203.51,0.00024287,2]
[329276187,1718211033792,-158.97201675,0.00024289,2]
[329276188,1718211033803,-151.71,0.00024319,2]
[329276189,1718211033816,-173.66691229,0.00024319,2]
[329276190,1718211033827,-500.0,0.00024328,2]
[329276191,1718211033840,-515.12972072,0.00024328,2]
[329276192,1718211033853,-504.92712431,0.00024328,2]
[329276193,1718211033866,-500.0,0.00024328,2]
[329276194,1718211033885,-530.54766845,0.00024328,2]
[329276195,1718211033896,-500.0,0.00024328,2]
[329276196,1718211033907,-500.0,0.00024328,2]
[329276197,1718211033919,-500.0,0.00024328,2]
[329276198,1718211033930,-500.0,0.00024328,2]
[329276199,1718211033941,-500.0,0.00024328,2]
[329276200,1718211033952,-207.08446305,0.00024328,2]
[329276201,1718211033964,-528.37,0.00024328,2]
[329276202,1718211033977,-500.0,0.00024328,2]
[329276203,1718211033988,-500.0,0.00024328,2]
[329276204,1718211033998,-500.0,0.00024328,2]
[329276205,1718211034009,-500.0,0.00024328,2]
[329276206,1718211034020,-500.0,0.00024328,2]
[329276207,1718211034031,-500.0,0.00024328,2]
[329276208,1718211034042,-500.0,0.00024328,2]
[329276209,1718211034053,-334.66190313,0.00024328,2]
[329276210,1718211034063,-500.0,0.00024328,2]
[329276211,1718211034073,-500.0,0.00024328,2]
[329276212,1718211034084,-500.0,0.00024328,2]
[329276213,1718211034095,-500.0,0.00024328,2]
[329276214,1718211034106,-500.0,0.00024328,2]
[329276216,1718211034118,-500.0,0.00024328,2]
[329276218,1718211034131,-500.0,0.00024328,2]
[329276219,1718211034142,-500.0,0.00024328,2]
[329276220,1718211034152,-500.0,0.00024328,2]
[329276221,1718211034163,-500.0,0.00024328,2]
[329276222,1718211034173,-500.0,0.00024328,2]
[329276223,1718211034184,-513.94,0.00024328,2]
[329276224,1718211034195,-500.0,0.00024328,2]
[329276225,1718211034206,-500.0,0.00024328,2]
[329276226,1718211034220,-526.95998728,0.00024328,2]
[329276227,1718211034232,-500.0,0.00024328,2]
[329276228,1718211034244,-500.0,0.00024328,2]
[329276229,1718211034254,-500.0,0.00024328,2]
[329276230,1718211034265,-500.0,0.00024328,2]
[329276231,1718211034277,-500.0,0.00024328,2]
[329276232,1718211034289,-500.0,0.00024328,2]
[329276233,1718211034300,-500.0,0.00024328,2]
[329276234,1718211034312,-500.0,0.00024328,2]
[329276235,1718211034322,-500.0,0.00024328,2]
[329276236,1718211034334,-500.0,0.00024328,2]
[329276237,1718211034344,-500.0,0.00024328,2]
[329276238,1718211034355,-513.64,0.00024328,2]
[329276239,1718211034367,-372.84,0.00024328,2]
[329276240,1718211034380,-500.0,0.00024328,2]
[329276241,1718211034396,-500.0,0.00024328,2]
[329276242,1718211034420,-500.0,0.00024328,2]
[329276243,1718211034442,-500.0,0.00024328,2]
[329276244,1718211034457,-25101.04460535,0.00024329,2]
[329276245,1718211034499,-362.72006922,0.00024329,2]
[329276246,1718211034517,-1362.61061232,0.00024329,2]
[329276247,1718211034530,-1158.02133961,0.00024329,2]
[329276248,1718211034549,-155.0,0.00024329,2]
[329276249,1718211034568,-155.08489314,0.00024329,2]
[329276250,1718211034581,-82340.00980566,0.00024329,2]
[329276251,1718211034609,-562.15993343,0.00024329,2]
[329276252,1718211034630,-283.87982098,0.00024329,2]
[329276271,1718211039022,-198.1,0.00021936,2]
[329276272,1718211039033,-500.0,0.00024328,2]
[329276273,1718211039045,-500.0,0.00024328,2]
[329276274,1718211039061,-500.0,0.00024328,2]
[329276275,1718211039081,-500.0,0.00024328,2]
[329276276,1718211039099,-2273.90796351,0.00024329,2]
[329276291,1718211042894,-500.0,0.00024328,2]
[329276292,1718211042912,-500.0,0.00024328,2]
[329276293,1718211042929,-642.6789177,0.00024329,2]
[329276294,1718211042955,-673.38953007,0.00024329,2]
[329276295,1718211042975,-383.65,0.00024329,2]
[329276296,1718211042997,-261.9,0.00024329,2]
[329276297,1718211043022,-849.33,0.00024329,2]
[329276298,1718211043041,-325.82,0.00024329,2]
[329276299,1718211043062,-2905.98110579,0.00024329,2]
[329276300,1718211043078,-338.14713386,0.00024329,2]
[329276301,1718211043159,-2022.7165844,0.00024329,2]
[329276303,1718211043173,-464.58898707,0.00024329,2]
[329276324,1718211044005,-500.0,0.00024328,2]
[329276325,1718211044018,-43426.04115977,0.00024329,2]
[329276327,1718211044036,-17828.8685394,0.00024329,2]
[329276328,1718211044066,-548.07800964,0.00024329,2]
[329276329,1718211044095,-17931.91225216,0.00024329,2]
[329276330,1718211044120,-17403.23722484,0.00024329,2]
[329276331,1718211044191,-24458.8166724,0.00024329,2]
[329276332,1718211044208,-4139.75197198,0.00024329,2]
[329276333,1718211044227,-16526.71636095,0.00024329,2]
[329276334,1718211044335,-377.00509337,0.00024329,2]
[329276335,1718211044349,-4303.63783665,0.00024329,2]
[329276336,1718211044369,-3924.53627189,0.00024329,2]
[329276337,1718211044386,-1207.5568522,0.00024329,2]
[329276338,1718211044686,-5003.85931463,0.00024329,2]
[329276339,1718211044700,-1086.31263182,0.00024329,2]
[329276340,1718211044716,-1370.91809665,0.00024329,2]
[329276341,1718211044730,-5507.7171,0.00024329,2]
[329276342,1718211044746,-2335.98571427,0.00024329,2]
[329276343,1718211044763,-17807.81418319,0.00024329,2]
[329276344,1718211044778,-1937.81574432,0.00024329,2]
[329276345,1718211044800,-505.3,0.00024329,2]
[329276346,1718211044821,-425.80000015,0.00024329,2]
[329276347,1718211044837,-1682.12616235,0.00024329,2]
[329276348,1718211044852,-764.825,0.00024329,2]
[329276349,1718211044878,-263205.36770494,0.00024329,2]
[329276351,1718211044897,-166.91,0.00024384,2]
[329276353,1718211044909,-500.0,0.00024465,2]
[329276355,1718211044920,-188.9,0.00024465,2]
[329276357,1718211044931,-397.12795657,0.00024465,2]
[329276359,1718211044942,-500.0,0.00024465,2]
[329276360,1718211044954,-500.0,0.00024465,2]
[329276361,1718211044970,-500.0,0.00024465,2]
[329276363,1718211044982,-492.3046021,0.00024465,2]
[329276365,1718211044993,-500.0,0.00024465,2]
[329276367,1718211045004,-500.0,0.00024465,2]
[329276369,1718211045016,-333.52756425,0.00024465,2]
[329276371,1718211045027,-500.0,0.00024465,2]
[329276373,1718211045038,-500.0,0.00024465,2]
[329276375,1718211045050,-500.0,0.00024465,2]
[329276377,1718211045061,-500.0,0.00024465,2]
[329276379,1718211045074,-500.0,0.00024465,2]
[329276381,1718211045087,-500.0,0.00024465,2]
[329276383,1718211045097,-500.0,0.00024465,2]
[329276385,1718211045110,-161.7109971,0.00024466,2]
[329276388,1718211045120,-303.5903,0.00024471,2]
[329276390,1718211045133,-161.7109971,0.00024531,2]
[329276393,1718211045144,-160.82059718,0.00024532,2]
[329276395,1718211045155,-157.99933627,0.00024568,2]
[329276397,1718211045166,-500.0,0.00024571,2]
[329276399,1718211045177,-500.0,0.00024571,2]
[329276401,1718211045189,-500.0,0.00024571,2]
[329276403,1718211045200,-500.0,0.00024571,2]
[329276405,1718211045212,-221.77542531,0.00024571,2]
[329276406,1718211045224,-500.0,0.00024571,2]
[329276409,1718211045239,-500.0,0.00024571,2]
[329276410,1718211045251,-500.0,0.00024571,2]
[329276413,1718211045266,-500.0,0.00024571,2]
[329276415,1718211045277,-500.0,0.00024571,2]
[329276417,1718211045293,-500.0,0.00024571,2]
[329276419,1718211045304,-500.0,0.00024571,2]
[329276421,1718211045317,-150.0,0.00024571,2]
[329276423,1718211045328,-500.0,0.00024571,2]
[329276425,1718211045339,-500.0,0.00024571,2]
[329276427,1718211045351,-500.0,0.00024571,2]
[329276429,1718211045366,-500.0,0.00024571,2]
[329276431,1718211045377,-500.0,0.00024571,2]
[329276433,1718211045390,-500.0,0.00024571,2]
[329276435,1718211045401,-500.0,0.00024571,2]
[329276437,1718211045413,-500.0,0.00024571,2]
[329276439,1718211045424,-500.0,0.00024571,2]
[329276441,1718211045435,-500.0,0.00024571,2]
[329276443,1718211045448,-500.0,0.00024571,2]
[329276445,1718211045463,-500.0,0.00024571,2]
[329276447,1718211045499,-513.35259476,0.00024571,2]
[329276449,1718211045516,-500.0,0.00024571,2]
[329276450,1718211045529,-500.0,0.00024571,2]
[329276452,1718211045543,-500.0,0.00024571,2]
[329276454,1718211045557,-500.0,0.00024571,2]
[329276455,1718211045574,-500.0,0.00024571,2]
[329276457,1718211045590,-500.0,0.00024571,2]
[329276459,1718211045605,-504.68064139,0.00024571,2]
[329276461,1718211045616,-500.0,0.00024571,2]
[329276463,1718211045633,-490.17487673,0.00024571,2]
[329276465,1718211045646,-500.0,0.00024571,2]
[329276467,1718211045658,-500.0,0.00024571,2]
[329276469,1718211045668,-500.0,0.00024571,2]
[329276471,1718211045680,-500.0,0.00024571,2]
[329276474,1718211045695,-500.0,0.00024571,2]
[329276476,1718211045706,-500.0,0.00024571,2]
[329276478,1718211045719,-500.0,0.00024571,2]
[329276480,1718211045730,-500.0,0.00024571,2]
[329276482,1718211045743,-500.0,0.00024571,2]
[329276484,1718211045756,-500.0,0.00024571,2]
[329276486,1718211045768,-500.0,0.00024571,2]
[329276488,1718211045778,-500.0,0.00024571,2]
[329276490,1718211045790,-508.69718059,0.00024571,14]
[329276492,1718211045802,-500.0,0.00024571,2]
[329276494,1718211045814,-500.0,0.00024571,2]
[329276496,1718211045826,-500.0,0.00024571,2]
[329276498,1718211045840,-500.0,0.00024571,2]
[329276500,1718211045852,-505.02900136,0.00024571,2]
[329276502,1718211045865,-500.0,0.00024571,2]
[329276504,1718211045878,-500.0,0.00024571,2]
[329276506,1718211045888,-500.0,0.00024571,2]
[329276508,1718211045899,-467.21947646,0.00024571,2]
[329276510,1718211045911,-500.0,0.00024571,2]
[329276512,1718211045922,-500.0,0.00024571,2]
[329276514,1718211045933,-500.0,0.00024571,2]
[329276516,1718211045945,-500.0,0.00024571,2]
[329276518,1718211045957,-500.0,0.00024571,2]
[329276520,1718211045970,-500.0,0.00024571,2]
[329276522,1718211045985,-500.0,0.00024571,2]
[329276524,1718211045998,-500.0,0.00024571,2]
[329276526,1718211046011,-500.0,0.00024571,2]
[329276528,1718211046022,-500.0,0.00024571,2]
[329276530,1718211046034,-500.0,0.00024571,2]
[329276532,1718211046047,-500.0,0.00024571,2]
[329276534,1718211046059,-636.44188437,0.00024571,2]
[329276536,1718211046074,-500.0,0.00024571,2]
[329276538,1718211046086,-500.0,0.00024571,2]
[329276540,1718211046098,-500.0,0.00024571,2]
[329276543,1718211046114,-567.41232457,0.00024571,2]
[329276545,1718211046131,-500.0,0.00024571,2]
[329276547,1718211046143,-500.0,0.00024571,2]
[329276549,1718211046159,-500.0,0.00024571,2]
[329276551,1718211046179,-500.0,0.00024571,2]
[329276553,1718211046193,-500.0,0.00024571,2]
[329276555,1718211046205,-500.0,0.00024571,2]
[329276557,1718211046219,-514.66762318,0.00024571,2]
[329276559,1718211046245,-500.0,0.00024571,2]
[329276561,1718211046264,-500.0,0.00024571,2]
[329276563,1718211046275,-500.0,0.00024571,2]
[329276565,1718211046292,-500.0,0.00024571,2]
[329276567,1718211046304,-500.0,0.00024571,2]
[329276569,1718211046315,-500.0,0.00024571,2]
[329276571,1718211046327,-406.04801447,0.00024571,2]
[329276573,1718211046339,-177.96552191,0.00024571,2]
[329276575,1718211046353,-500.0,0.00024571,2]
[329276578,1718211046365,-500.0,0.00024571,2]
[329276580,1718211046376,-500.0,0.00024571,2]
[329276582,1718211046387,-500.0,0.00024571,2]
[329276584,1718211046400,-500.0,0.00024571,2]
[329276586,1718211046414,-500.0,0.00024571,2]
[329276588,1718211046428,-500.0,0.00024571,2]
[329276590,1718211046439,-500.0,0.00024571,2]
[329276592,1718211046452,-500.0,0.00024571,2]
[329276594,1718211046467,-500.0,0.00024571,2]
[329276595,1718211046478,-500.0,0.00024571,2]
[329276597,1718211046512,-548.75603293,0.00024571,2]
[329276599,1718211046531,-500.0,0.00024571,2]
[329276601,1718211046551,-536.31168264,0.00024571,2]
[329276603,1718211046566,-500.0,0.00024571,2]
[329276627,1718211046580,-935.59,0.00024571,2]
[329276629,1718211046806,-500.0,0.00024571,2]
[329276630,1718211046818,-500.0,0.00024571,2]
[329276631,1718211046829,-506.05667864,0.00024571,2]
[329276632,1718211046839,-500.0,0.00024571,2]
[329276633,1718211046850,-505.71714151,0.00024571,2]
[329276634,1718211046862,-500.0,0.00024571,2]
[329276635,1718211046875,-500.0,0.00024571,2]
[329276636,1718211046886,-500.0,0.00024571,2]
[329276637,1718211046896,-500.0,0.00024571,2]
[329276638,1718211046906,-500.0,0.00024571,2]
[329276639,1718211046916,-500.0,0.00024571,2]
[329276640,1718211046926,-500.0,0.00024571,2]
[329276641,1718211046937,-500.0,0.00024571,2]
[329276642,1718211046948,-500.0,0.00024571,2]
[329276643,1718211046958,-623.51,0.00024571,2]
[329276644,1718211046968,-500.0,0.00024571,2]
[329276645,1718211046978,-500.0,0.00024571,2]
[329276646,1718211046989,-500.0,0.00024571,2]
[329276648,1718211047003,-506.2,0.00024571,2]
[329276650,1718211047013,-500.0,0.00024571,2]
[329276652,1718211047023,-500.0,0.00024571,2]
[329276654,1718211047035,-500.0,0.00024571,2]
[329276656,1718211047046,-500.0,0.00024571,2]
[329276658,1718211047057,-500.0,0.00024571,2]
[329276660,1718211047067,-500.0,0.00024571,2]
[329276663,1718211047078,-500.0,0.00024571,2]
[329276666,1718211047088,-500.0,0.00024571,2]
[329276669,1718211047099,-500.0,0.00024571,2]
[329276672,1718211047109,-500.0,0.00024571,2]
[329276674,1718211047120,-428.79,0.00024571,2]
[329276676,1718211047131,-500.0,0.00024571,2]
[329276678,1718211047141,-509.35,0.00024571,2]
[329276680,1718211047151,-443.45,0.00024571,2]
[329276682,1718211047163,-500.0,0.00024571,2]
[329276684,1718211047174,-500.0,0.00024571,2]
[329276686,1718211047184,-500.0,0.00024571,2]
[329276688,1718211047195,-500.0,0.00024571,2]
[329276690,1718211047206,-500.0,0.00024571,2]
[329276692,1718211047216,-500.0,0.00024571,2]
[329276694,1718211047226,-500.0,0.00024571,2]
[329276696,1718211047239,-500.0,0.00024571,2]
[329276698,1718211047249,-500.0,0.00024571,2]
[329276700,1718211047259,-500.0,0.00024571,2]
[329276702,1718211047269,-500.0,0.00024571,2]
[329276704,1718211047279,-255.31,0.00024571,2]
[329276706,1718211047290,-500.0,0.00024571,2]
[329276708,1718211047300,-500.0,0.00024571,2]
[329276710,1718211047310,-500.0,0.00024571,2]
[329276712,1718211047320,-500.0,0.00024571,2]
[329276714,1718211047331,-500.0,0.00024571,2]
[329276716,1718211047341,-500.0,0.00024571,2]
[329276719,1718211047351,-500.0,0.00024571,2]
[329276722,1718211047362,-500.0,0.00024571,2]
[329276724,1718211047372,-500.0,0.00024571,2]
[329276726,1718211047382,-500.0,0.00024571,2]
[329276728,1718211047392,-500.0,0.00024571,2]
[329276730,1718211047403,-366.0899276,0.00024571,2]
[329276732,1718211047413,-540.75,0.00024571,2]
[329276734,1718211047424,-500.0,0.00024571,2]
[329276736,1718211047434,-500.0,0.00024571,2]
[329276738,1718211047445,-500.0,0.00024571,2]
[329276740,1718211047457,-500.0,0.00024571,2]
[329276742,1718211047468,-500.0,0.00024571,2]
[329276744,1718211047478,-500.0,0.00024571,2]
[329276746,1718211047502,-500.0,0.00024571,2]
[329276748,1718211047514,-500.0,0.00024571,2]
[329276750,1718211047524,-500.0,0.00024571,2]
[329276753,1718211047538,-523.32,0.00024571,2]
[329276755,1718211047549,-500.0,0.00024571,2]
[329276757,1718211047561,-500.0,0.00024571,2]
[329276759,1718211047576,-500.0,0.00024571,2]
[329276761,1718211047592,-500.0,0.00024571,2]
[329276763,1718211047603,-500.0,0.00024571,2]
[329276765,1718211047615,-328.61247349,0.00024571,2]
[329276767,1718211047629,-500.0,0.00024571,2]
[329276769,1718211047639,-383.8557262,0.00024571,2]
[329276771,1718211047651,-500.0,0.00024571,2]
[329276773,1718211047663,-500.0,0.00024571,2]
[329276775,1718211047675,-500.0,0.00024571,2]
[329276777,1718211047689,-500.0,0.00024571,2]
[329276779,1718211047700,-500.0,0.00024571,2]
[329276781,1718211047714,-500.0,0.00024571,2]
[329276782,1718211047725,-500.0,0.00024571,2]
[329276784,1718211047737,-500.0,0.00024571,2]
[329276786,1718211047750,-500.0,0.00024571,2]
[329276788,1718211047762,-500.0,0.00024571,2]
[329276790,1718211047772,-500.0,0.00024602,2]
[329276793,1718211047788,-500.0,0.00024602,2]
[329276795,1718211047798,-600.27,0.00024602,2]
[329276797,1718211047809,-166.66666668,0.00024637,2]